bitfinex/quotes_SOLUSD_20250310
["timestamp","ask_amount","ask_price","bid_price","bid_amount"]
[1741579929272,0.03,127.95,127.93,172.4391]
[1741579929458,16.73203724,127.94,127.93,162.9998]
[1741579929649,16.73203724,127.94,127.9,0.063]
[1741579929964,16.73203724,127.91,127.9,0.063]
[1741579930967,35.3816861,127.91,127.9,0.063]
[1741579931167,20.0,127.87,127.83,163.5678]
[1741579931342,18.64964886,127.9,127.83,82.0678]
[1741579931343,16.73203724,127.84,127.83,82.0678]
[1741579932362,26.81685863,127.84,127.83,82.0678]
[1741579932768,26.81685863,127.85,127.83,82.0678]
[1741579934474,26.81685863,127.84,127.83,0.568]
[1741579934677,45.46650749,127.84,127.83,0.568]
[1741579935474,53.28870749,127.84,127.83,0.568]
[1741579935846,24.37231942,127.96,127.84,81.4998]
[1741579936162,24.37231942,127.96,127.84,88.9198]
[1741579936163,26.81685863,127.9,127.84,88.9198]
[1741579936477,26.81685863,127.9,127.84,427.73665863]
[1741579936651,26.81685863,127.91,127.85,26.81685863]
[1741579936855,18.64964886,127.93,127.85,26.81685863]
[1741579937055,38.98801834,127.91,127.85,26.81685863]
[1741579937450,46.80611834,127.91,127.85,26.81685863]
[1741579938059,12.17115971,127.91,127.87,26.81685863]
[1741579938254,19.98915971,127.91,127.86,26.81685863]
[1741579939074,34.63435863,127.92,127.86,26.81685863]
[1741579939470,34.63435863,127.92,127.86,34.63775863]
[1741579939777,26.81685863,127.91,127.85,26.81685863]
[1741579940977,7.8186,127.9,127.85,26.81685863]
[1741579941174,34.63545863,127.9,127.84,509.23665863]
[1741579941371,26.81685863,127.89,127.84,162.9998]
[1741579941672,26.81685863,127.89,127.83,35.20765863]
[1741579942257,26.81685863,127.88,127.83,35.20765863]
[1741579942873,26.81685863,127.88,127.84,0.063]
[1741579943788,26.81685863,127.89,127.84,0.063]
[1741579944288,26.81685863,127.89,127.84,26.87985863]
[1741579944458,26.81685863,127.9,127.84,26.87985863]
[1741579944659,6.5519,127.91,127.86,26.81685863]
[1741579945162,33.36875863,127.91,127.86,26.81685863]
[1741579946585,33.36875863,127.91,127.85,26.81685863]
[1741579946776,26.81685863,127.9,127.84,197.70145863]
[1741579947084,26.81685863,127.9,127.85,26.81685863]
[1741579947285,33.36875863,127.91,127.85,26.81685863]
[1741579947785,33.36875863,127.91,127.86,26.81685863]
[1741579948471,33.36875863,127.91,127.85,26.81685863]
[1741579949060,33.36875863,127.91,127.86,26.81685863]
[1741579949388,6.5519,127.91,127.86,26.81685863]
[1741579949686,0.03,127.91,127.86,26.81685863]
[1741579950198,46.84685863,127.91,127.86,26.81685863]
[1741579950482,20.03,127.91,127.86,26.81685863]
[1741579950885,20.03,127.91,127.87,26.81685863]
[1741579952384,20.03,127.91,127.84,475.0628]
[1741579952385,20.03,127.91,127.86,16.74075536]
[1741579954286,20.03,127.91,127.87,16.74075536]
[1741579955586,36.77075536,127.91,127.87,0.063]
[1741579955994,20.03,127.91,127.87,16.80375536]
[1741579956573,36.77075536,127.91,127.87,0.063]
[1741579957393,20.03,127.91,127.87,0.063]
[1741579957785,16.74075536,127.89,127.87,0.063]
[1741579958494,16.74075536,127.88,127.87,0.063]
[1741579958796,36.74075536,127.88,127.87,0.063]
[1741579959180,55.39040422,127.88,127.87,0.063]
[1741579959971,41.62250422,127.88,127.87,0.063]
[1741579961085,124.02250422,127.88,127.87,0.063]
[1741579961284,49.44230422,127.88,127.87,0.063]
[1741579962098,41.62250422,127.88,127.87,0.063]
[1741579962811,20.0,127.88,127.87,0.063]
[1741579962986,18.64964886,127.9,127.87,0.063]
[1741579963177,20.0,127.88,127.87,0.063]
[1741579963605,18.40365536,127.91,127.87,0.063]
[1741579963809,16.77075536,127.91,127.87,0.063]
[1741579964195,16.77075536,127.91,127.87,16.80375536]
[1741579964196,0.03,127.91,127.87,16.80375536]
[1741579964577,0.03,127.91,127.88,16.74075536]
[1741579965014,0.03,127.91,127.87,16.80375536]
[1741579965914,0.03,127.91,127.88,7.8198]
[1741579966209,0.03,127.91,127.88,24.56055536]
[1741579966887,0.03,127.91,127.89,16.74075536]
[1741579967488,0.03,127.91,127.9,16.74075536]
[1741579968117,0.03,127.91,127.9,24.55935536]
[1741579970799,0.03,127.91,127.9,16.74075536]
[1741579971524,0.03,127.91,127.89,18.35375536]
[1741579971683,0.03,127.91,127.89,16.74075536]
[1741579971878,0.03,127.91,127.88,162.9998]
[1741579972220,0.03,127.91,127.89,16.74075536]
[1741579973337,0.03,127.91,127.89,24.55985536]
[1741579973497,0.03,127.91,127.9,16.74075536]
[1741579974129,0.03,127.91,127.89,24.55985536]
[1741579974333,0.03,127.91,127.89,16.74075536]
[1741579975013,0.03,127.91,127.89,24.55985536]
[1741579975639,0.03,127.91,127.89,16.74075536]
[1741579976636,0.03,127.91,127.89,24.55985536]
[1741579976936,0.03,127.91,127.89,16.74075536]
[1741579981143,0.03,127.91,127.9,16.74075536]
[1741579981556,0.03,127.91,127.88,163.0628]
[1741579981755,0.03,127.91,127.89,16.74075536]
[1741579983245,0.03,127.91,127.9,16.74075536]
[1741579984857,0.03,127.91,127.89,16.74075536]
[1741579985350,0.03,127.91,127.9,16.74075536]
[1741579986627,0.03,127.91,127.89,16.74075536]
[1741579987722,0.03,127.91,127.9,16.74075536]
[1741579988733,0.03,127.91,127.89,16.74075536]
[1741579989649,0.03,127.91,127.88,0.063]
[1741579990025,0.03,127.91,127.89,16.74075536]
[1741579990559,0.03,127.91,127.9,16.74075536]
[1741579991455,0.03,127.91,127.88,0.063]
[1741579991658,16.77075536,127.91,127.88,0.063]
[1741579991857,0.03,127.91,127.88,0.063]
[1741579992068,0.03,127.91,127.9,16.74075536]
[1741579992365,0.03,127.91,127.9,36.56261759]
[1741579992524,0.03,127.91,127.9,35.39040422]
[1741579993245,0.03,127.91,127.9,36.56268236]
[1741579993759,0.03,127.91,127.9,35.39040422]
[1741579994059,0.03,127.91,127.9,36.5626686]
[1741579994437,0.03,127.91,127.9,348.5626686]
[1741579994637,0.03,127.95,127.9,355.20900422]
[1741579994861,0.03,127.95,127.94,16.74075536]
[1741579995227,0.03,127.95,127.91,18.64964886]
[1741579995430,0.03,127.95,127.93,16.74075536]
[1741579996481,0.03,127.95,127.94,16.74075536]
[1741579996662,0.03,127.95,127.94,23.96075536]
[1741579996862,0.03,127.95,127.94,31.77685536]
[1741579998270,23.20805536,128.0,127.95,16.74075536]
[1741579998571,6.4673,128.0,127.96,16.74075536]
[1741579998887,6.4673,128.0,127.97,7.8143]
[1741579999751,16.74075536,128.01,127.97,27.3501]
[1741579999953,17.24075536,128.03,127.98,16.74075536]
[1741580000277,0.5,128.03,127.99,16.74075536]
[1741580000592,17.24075536,128.03,127.98,16.74075536]
[1741580000876,17.24075536,128.03,127.99,7.8131]
[1741580001071,16.74075536,128.01,127.98,7.8135]
[1741580001473,17.24075536,128.03,127.98,24.55425536]
[1741580001780,0.5,128.03,127.99,16.74075536]
[1741580001981,17.24075536,128.03,127.98,44.08855536]
[1741580002167,0.5,128.03,127.99,16.74075536]
[1741580002566,17.24075536,128.03,127.98,44.08855536]
[1741580002979,0.5,128.03,127.99,16.74075536]
[1741580003283,0.5,128.03,128.0,23.96075536]
[1741580003589,0.5,128.03,128.0,105.46055536]
[1741580003759,0.5,128.03,128.01,16.74075536]
[1741580004785,0.5,128.03,128.0,88.7198]
[1741580004984,17.24075536,128.03,127.98,7.8134]
[1741580005167,16.74075536,128.02,127.98,7.8134]
[1741580005372,16.74075536,128.02,127.97,114.89435536]
[1741580006184,25.08145536,128.03,127.97,114.89435536]
[1741580006587,16.74075536,128.02,127.97,105.48055536]
[1741580006885,16.74075536,127.99,127.96,186.2]
[1741580007382,16.74075536,127.98,127.96,186.2]
[1741580007569,16.74075536,127.98,127.94,0.063]
[1741580009483,24.55465536,127.98,127.94,0.063]
[1741580009982,16.74075536,127.97,127.94,0.063]
[1741580010499,16.74075536,127.95,127.94,0.063]
[1741580010984,24.55625536,127.95,127.94,0.063]
[1741580011195,31.75625536,127.95,127.94,0.063]
[1741580011993,56.73740422,127.95,127.94,0.0001]
[1741580012675,38.64964886,127.91,127.89,0.063]
[1741580012883,42.59040422,127.9,127.89,0.063]
[1741580013086,58.24520422,127.9,127.89,0.063]
[1741580015289,50.42660422,127.9,127.89,0.063]
[1741580015500,31.77695536,127.9,127.89,0.063]
[1741580016189,24.57695536,127.9,127.89,0.063]
[1741580016497,31.79695536,127.9,127.89,0.063]
[1741580016795,30.29225536,127.9,127.89,0.063]
[1741580017091,13.5515,127.9,127.89,0.063]
[1741580017475,30.29225536,127.9,127.89,0.063]
[1741580017880,13.5515,127.9,127.89,0.063]
[1741580018285,20.0,127.9,127.89,0.063]
[1741580018486,16.74075536,127.92,127.89,0.063]
[1741580018685,22.9082,127.93,127.89,0.063]
[1741580018686,16.74075536,127.91,127.89,0.063]
[1741580019089,36.74075536,127.9,127.89,0.063]
[1741580021697,20.0,127.9,127.89,0.063]
[1741580022000,16.74075536,127.92,127.89,0.063]
[1741580022206,22.97215536,127.93,127.89,0.063]
[1741580023105,16.74075536,127.94,127.89,16.80375536]
[1741580023479,16.77075536,127.95,127.89,16.80375536]
[1741580023692,16.74075536,127.94,127.89,16.80375536]
[1741580024400,16.74075536,127.93,127.89,0.063]
[1741580024783,16.74075536,127.92,127.89,0.063]
[1741580025179,16.74075536,127.93,127.89,0.063]
[1741580025988,16.74075536,127.94,127.89,0.063]
[1741580027002,16.74075536,127.93,127.89,0.063]
[1741580027185,16.74075536,127.94,127.89,0.063]
[1741580027783,0.03,127.95,127.89,0.063]
[1741580027985,16.77075536,127.95,127.9,16.74075536]
[1741580028209,0.03,127.95,127.91,16.74075536]
[1741580029108,0.03,127.95,127.92,7.8173]
[1741580030986,0.03,127.95,127.91,7.8178]
[1741580030987,0.03,127.94,127.91,7.8178]
[1741580031300,0.03,127.94,127.9,9.4348]
[1741580031613,16.77075536,127.94,127.9,9.4348]
[1741580031810,0.03,127.94,127.9,9.4348]
[1741580032305,0.03,127.94,127.9,26.17555536]
[1741580032483,0.03,127.94,127.91,16.74075536]
[1741580032684,0.03,127.94,127.92,16.74075536]
[1741580033315,0.03,127.94,127.93,7.8167]
[1741580035607,0.03,127.94,127.92,7.8173]
[1741580036517,0.03,127.94,127.91,7.8179]
[1741580040909,0.03,127.94,127.91,24.55865536]
[1741580041295,0.03,127.94,127.91,7.8179]
[1741580042905,0.03,127.94,127.91,24.55865536]
[1741580045812,0.03,127.94,127.91,7.8179]
[1741580047126,16.77075536,127.94,127.9,89.3181]
[1741580047313,16.77075536,127.94,127.9,81.4998]
[1741580048721,24.58715536,127.94,127.9,81.4998]
[1741580049132,24.58715536,127.94,127.89,89.3819]
[1741580049338,24.58715536,127.94,127.89,7.8819]
[1741580050137,24.58715536,127.94,127.89,24.62265536]
[1741580050726,16.77075536,127.94,127.89,24.62265536]
[1741580050929,0.03,127.94,127.89,24.62265536]
[1741580051120,0.03,127.94,127.91,16.74075536]
[1741580052519,0.03,127.94,127.92,7.8173]
[1741580055820,0.03,127.94,127.92,24.55805536]
[1741580056319,0.03,127.94,127.92,7.8173]
[1741580057711,0.03,127.94,127.91,7.8807]
[1741580059444,0.03,127.94,127.91,18.58936745]
[1741580061041,0.03,127.94,127.92,10.70866745]
[1741580062346,0.03,127.94,127.93,7.8167]
[1741580064440,0.03,127.94,127.93,10.70866745]
[1741580064644,0.03,127.95,127.93,173.70846745]
[1741580064841,6.1264,128.0,127.94,29.35831631]
[1741580065145,16.58874859,128.02,127.97,10.70866745]
[1741580065922,10.70866745,128.02,127.97,10.70866745]
[1741580066445,17.45856745,128.03,127.98,10.70866745]
[1741580066650,0.53,128.03,128.01,10.70866745]
[1741580068238,0.53,128.03,128.01,16.70475406]
[1741580068547,0.53,128.03,128.01,24.51645406]
[1741580069045,0.53,128.03,128.01,16.70475406]
[1741580070627,17.23475406,128.03,127.99,162.9998]
[1741580070939,0.53,128.03,127.99,179.70455406]
[1741580071146,0.53,128.03,127.99,187.51755406]
[1741580071345,0.53,128.03,127.99,16.70475406]
[1741580071725,0.53,128.03,128.0,16.70475406]
[1741580072738,0.53,128.03,128.0,24.51705406]
[1741580077235,0.53,128.03,128.0,16.70475406]
[1741580077436,16.70475406,128.01,127.97,203.18]
[1741580077768,16.70475406,128.0,127.97,203.18]
[1741580077941,24.51745406,128.0,127.97,203.18]
[1741580079142,16.70475406,127.99,127.95,162.9998]
[1741580079655,16.70475406,127.99,127.95,170.8153]
[1741580080034,24.51745406,128.0,127.95,187.52005406]
[1741580080445,23.22545406,128.01,127.96,16.70475406]
[1741580080655,6.5207,128.01,127.97,16.70475406]
[1741580080946,14.3327,128.01,127.97,16.70475406]
[1741580081352,6.5207,128.01,127.97,16.70475406]
[1741580081542,18.77835406,128.03,127.98,16.70475406]
[1741580082458,18.77835406,128.03,127.99,7.8131]
[1741580083551,0.53,128.03,127.99,24.51785406]
[1741580084456,0.53,128.03,128.0,16.70475406]
[1741580084756,0.53,128.03,128.0,328.70475406]
[1741580085635,0.53,128.03,128.01,16.70475406]
[1741580086052,0.53,128.03,127.99,23.76475406]
[1741580086251,0.53,128.03,128.02,35.35440292]
[1741580086553,0.53,128.03,128.02,43.16560292]
[1741580086750,0.53,128.03,128.0,16.70475406]
[1741580086954,0.53,128.03,128.0,7.8123]
[1741580087648,17.23475406,128.03,127.99,7.8131]
[1741580088536,0.53,128.03,127.99,7.8131]
[1741580089138,0.53,128.03,127.99,24.51785406]
[1741580089448,0.53,128.03,128.0,16.70475406]
[1741580089855,0.53,128.03,128.0,35.35440292]
[1741580090163,0.53,128.03,128.01,16.70475406]
[1741580090544,0.53,128.03,128.02,43.16560292]
[1741580091341,0.5,128.1,128.07,38.64964886]
[1741580091547,0.5,128.1,128.09,16.70475406]
[1741580092656,0.5,128.1,128.09,24.51175406]
[1741580094741,0.5,128.1,128.09,7.807]
[1741580094942,0.5,128.1,128.09,24.51175406]
[1741580096962,0.5,128.1,128.09,336.51175406]
[1741580097268,0.5,128.1,128.09,24.51175406]
[1741580098668,0.5,128.1,128.09,7.807]
[1741580098876,0.0001,128.1,128.09,98.20455406]
[1741580100774,0.0001,128.1,128.09,124.66120292]
[1741580101456,0.0001,128.1,128.09,222.86595698]
[1741580102261,2.7388967,128.15,128.13,20.0]
[1741580102464,2.7388967,128.15,128.14,16.70475406]
[1741580102970,2.7388967,128.15,128.13,162.9998]
[1741580104990,16.70475406,128.14,128.09,162.9998]
[1741580105297,16.70475406,128.14,128.09,106.01105406]
[1741580105884,16.70475406,128.14,128.09,89.3063]
[1741580106392,16.70475406,128.14,128.09,106.01105406]
[1741580106557,19.44365076,128.15,128.1,16.70475406]
[1741580106965,2.7388967,128.15,128.11,7.8057]
[1741580107265,2.7388967,128.15,128.11,24.51045406]
[1741580107473,2.7388967,128.15,128.11,7.8057]
[1741580107658,2.7388967,128.15,128.11,24.51045406]
[1741580108550,2.7388967,128.15,128.11,7.8057]
[1741580109181,27.24715076,128.15,128.09,179.70455406]
[1741580109357,24.35165406,128.13,128.08,24.51205406]
[1741580109757,24.35165406,128.13,128.07,16.70475406]
[1741580109953,24.35165406,128.13,128.07,24.51265406]
[1741580110387,24.35165406,128.13,128.08,16.70475406]
[1741580111389,7.6469,128.13,128.08,16.70475406]
[1741580111694,7.6469,128.13,128.09,7.807]
[1741580111990,6.0492,128.13,128.1,16.70475406]
[1741580112286,109.64695076,128.15,128.1,16.70475406]
[1741580112592,109.64695076,128.15,128.09,24.51175406]
[1741580112828,16.70475406,128.14,128.09,7.807]
[1741580113084,16.70475406,128.14,128.09,24.51175406]
[1741580113593,109.64695076,128.15,128.09,24.51175406]
[1741580114490,27.24695076,128.15,128.09,24.51175406]
[1741580114894,24.50875406,128.14,128.09,24.51175406]
[1741580115077,16.70475406,128.13,128.08,24.51215406]
[1741580115272,2.7388967,128.15,128.11,16.70475406]
[1741580115463,2.7388967,128.15,128.12,16.70475406]
[1741580115885,2.7388967,128.15,128.13,16.70475406]
[1741580116080,2.7388967,128.15,128.14,16.70475406]
[1741580116402,2.7388967,128.15,128.13,16.70475406]
[1741580116796,0.03,128.14,128.13,16.70475406]
[1741580116989,0.03,128.14,128.13,24.50925406]
[1741580118178,0.03,128.14,128.13,7.8045]
[1741580118400,0.03,128.14,128.1,179.70455406]
[1741580119226,0.03,128.14,128.11,7.8055]
[1741580119383,0.03,128.14,128.11,24.51025406]
[1741580119795,0.03,128.14,128.11,7.8055]
[1741580120688,0.03,128.14,128.09,19.5803]
[1741580120689,16.70475406,128.12,128.09,0.063]
[1741580120891,16.70475406,128.1,128.09,0.063]
[1741580121198,16.70475406,128.11,128.09,0.063]
[1741580121591,16.70475406,128.12,128.09,0.063]
[1741580121786,24.69365406,128.13,128.09,0.063]
[1741580121998,16.70475406,128.12,128.09,0.063]
[1741580122485,16.70475406,128.11,128.09,0.063]
[1741580122683,16.70475406,128.1,128.09,0.063]
[1741580123315,24.51115406,128.1,128.09,0.063]
[1741580123684,16.70475406,128.1,128.09,0.063]
[1741580123902,16.70475406,128.11,128.09,0.063]
[1741580124896,90.3889,128.13,128.09,0.063]
[1741580125087,107.09365406,128.13,128.09,0.063]
[1741580125277,114.89835406,128.13,128.09,0.063]
[1741580125482,16.70475406,128.11,128.09,0.063]
[1741580126193,98.1936,128.13,128.09,0.063]
[1741580126396,16.70475406,128.12,128.09,0.063]
[1741580126597,16.70475406,128.1,128.09,0.063]
[1741580126787,16.70475406,128.11,128.09,0.063]
[1741580127798,16.70475406,128.12,128.09,0.063]
[1741580127997,7.9889,128.13,128.09,0.063]
[1741580128397,24.69365406,128.13,128.09,0.063]
[1741580128591,7.9889,128.13,128.09,0.063]
[1741580128793,32.49825406,128.13,128.09,0.063]
[1741580129402,16.70475406,128.11,128.09,0.063]
[1741580129607,24.51065406,128.11,128.09,0.063]
[1741580129804,16.70475406,128.1,128.09,0.063]
[1741580132524,16.70475406,128.12,128.09,0.063]
[1741580132692,16.70475406,128.11,128.09,0.063]
[1741580133728,16.70475406,128.1,128.09,0.063]
[1741580134724,16.70475406,128.11,128.09,0.063]
[1741580135089,16.70475406,128.12,128.09,0.063]
[1741580136110,105.46795406,128.13,128.09,0.063]
[1741580136606,16.73475406,128.14,128.09,16.76775406]
[1741580136808,0.03,128.14,128.1,16.70475406]
[1741580137892,0.03,128.14,128.11,7.8057]
[1741580139411,0.03,128.14,128.12,16.70475406]
[1741580140712,0.03,128.14,128.11,24.51045406]
[1741580140911,0.03,128.14,128.11,7.8057]
[1741580141899,0.03,128.14,128.11,24.51045406]
[1741580142092,0.03,128.14,128.12,16.70475406]
[1741580143100,0.03,128.14,128.11,24.51045406]
[1741580143327,0.03,128.14,128.11,7.8057]
[1741580144608,0.03,128.14,128.11,24.51045406]
[1741580145308,0.03,128.14,128.11,7.8057]
[1741580145537,0.03,128.14,128.1,7.8691]
[1741580145830,16.73475406,128.14,128.1,0.063]
[1741580145997,16.70475406,128.13,128.1,0.063]
[1741580146318,16.70475406,128.12,128.1,0.063]
[1741580147415,1.6224,128.14,128.1,0.063]
[1741580147416,37.95235406,128.11,128.1,0.063]
[1741580147943,76.96785698,128.11,128.1,0.063]
[1741580149926,60.26310292,128.11,128.1,0.063]
[1741580150125,76.96785698,128.11,128.1,0.063]
[1741580152238,58.26310292,128.11,128.1,0.063]
[1741580153010,74.96785698,128.11,128.1,0.063]
[1741580154041,76.96785698,128.11,128.1,0.063]
[1741580154243,20.64964886,128.1,128.09,0.063]
[1741580154419,20.0,128.07,127.99,83.0444]
[1741580154616,16.70475406,128.03,127.99,1.5446]
[1741580154821,16.70475406,128.01,127.98,203.445]
[1741580155022,16.70475406,128.02,127.98,211.2585]
[1741580155558,16.70475406,128.03,127.98,211.2585]
[1741580155854,16.70475406,128.03,127.98,227.96325406]
[1741580156875,16.70475406,128.06,128.01,16.70475406]
[1741580157158,16.70475406,128.08,128.02,18.29655406]
[1741580157328,16.70475406,128.08,128.03,16.70475406]
[1741580157641,16.70475406,128.09,128.04,16.70475406]
[1741580158740,16.70475406,128.08,128.03,24.51515406]
[1741580158941,13.4213,128.12,128.05,16.70475406]
[1741580159120,16.70475406,128.09,128.04,16.70475406]
[1741580159320,16.70475406,128.09,128.03,24.51515406]
[1741580161049,16.70475406,128.08,128.03,24.51515406]
[1741580161245,16.70475406,128.08,128.02,501.10745406]
[1741580161451,16.70475406,128.07,128.02,501.10745406]
[1741580161630,16.70475406,128.07,128.02,172.4027]
[1741580162356,7.8071,128.09,128.02,189.10745406]
[1741580162533,16.70475406,128.07,128.02,189.10745406]
[1741580162734,24.51245406,128.08,128.02,189.10745406]
[1741580163140,16.70475406,128.07,128.02,172.4027]
[1741580163548,15.4213,128.12,128.04,16.70475406]
[1741580163549,13.4213,128.12,128.04,16.70475406]
[1741580163730,16.70475406,128.11,128.06,16.70475406]
[1741580163940,16.73475406,128.12,128.06,16.70475406]
[1741580164135,16.70475406,128.1,128.05,16.70475406]
[1741580164544,16.70475406,128.1,128.05,24.51365406]
[1741580165053,16.70475406,128.11,128.05,24.51365406]
[1741580165254,0.03,128.12,128.08,18.29115406]
[1741580165633,0.03,128.12,128.08,1.5864]
[1741580165834,16.73475406,128.12,128.08,1.5864]
[1741580166235,0.03,128.12,128.08,1.5864]
[1741580166536,0.03,128.12,128.11,16.70475406]
[1741580166741,0.03,128.12,128.09,27.3239]
[1741580166742,0.03,128.12,128.1,16.70475406]
[1741580167158,0.03,128.12,128.09,132.58865406]
[1741580167359,0.03,128.12,128.09,81.5]
[1741580167557,16.73475406,128.12,128.08,90.8935]
[1741580167871,16.73475406,128.12,128.08,83.0862]
[1741580167872,16.70475406,128.11,128.08,83.0862]
[1741580169182,16.73475406,128.12,128.08,90.8935]
[1741580169675,16.70475406,128.11,128.08,81.4998]
[1741580170174,7.8352,128.12,128.06,7.06]
[1741580170376,16.70475406,128.1,128.05,9.4579]
[1741580171546,24.51125406,128.1,128.05,9.4579]
[1741580172286,16.70475406,128.09,128.05,1.6487]
[1741580172565,16.70475406,128.06,128.02,203.023]
[1741580172771,16.70475406,128.04,128.02,0.063]
[1741580173351,16.70475406,128.05,128.02,0.063]
[1741580173554,16.70475406,128.04,128.02,0.063]
[1741580174368,16.70475406,128.05,128.02,0.063]
[1741580174559,16.70475406,128.04,128.02,0.063]
[1741580176557,16.70475406,128.03,128.02,0.063]
[1741580178677,24.51535406,128.03,128.02,0.063]
[1741580179375,43.16500292,128.03,128.02,0.063]
[1741580179582,43.16500292,128.03,127.98,0.505]
[1741580179583,84.035,128.02,127.98,0.505]
[1741580179874,16.70475406,127.99,127.98,0.505]
[1741580180461,33.40950812,127.99,127.98,0.505]
[1741580180677,43.16750292,127.99,127.98,0.505]
[1741580181070,18.64964886,127.98,127.97,0.063]
[1741580181380,52.05915698,127.98,127.97,0.063]
[1741580181758,35.35440292,127.97,127.96,0.063]
[1741580182686,43.16870292,127.97,127.96,0.063]
[1741580183983,38.64964886,127.93,127.91,0.568]
[1741580184174,79.11915698,127.93,127.91,0.568]
[1741580184381,62.41440292,127.93,127.91,0.568]
[1741580184885,70.23110292,127.93,127.91,0.568]
[1741580186284,43.76475406,127.93,127.91,0.568]
[1741580186488,20.0,127.93,127.91,0.568]
[1741580186673,16.70475406,127.95,127.91,8.3858]
[1741580187466,23.76475406,127.96,127.91,8.3858]
[1741580187968,16.70475406,127.95,127.91,8.3858]
[1741580188592,16.70475406,127.94,127.91,8.3858]
[1741580188761,7.06,127.96,127.91,0.568]
[1741580188966,16.70475406,127.93,127.91,0.568]
[1741580190083,36.70475406,127.93,127.91,8.3858]
[1741580190406,36.70475406,127.93,127.91,0.568]
[1741580190584,36.70475406,127.93,127.91,8.3859]
[1741580190781,20.0,127.93,127.91,8.3859]
[1741580192693,36.70475406,127.93,127.91,8.3859]
[1741580192898,36.70475406,127.93,127.91,0.568]
[1741580193191,55.35440292,127.93,127.91,0.568]
[1741580193391,63.17110292,127.93,127.91,0.568]
[1741580193780,55.35440292,127.93,127.91,0.568]
[1741580194191,20.0,127.93,127.91,8.3859]
[1741580194715,16.70475406,127.95,127.91,8.3859]
[1741580195069,16.70475406,127.94,127.91,8.3859]
[1741580195313,16.70475406,127.95,127.91,8.3859]
[1741580195593,16.70475406,127.97,127.91,25.09065406]
[1741580195768,16.70475406,127.97,127.92,18.28395406]
[1741580196174,16.70475406,127.96,127.92,1.5792]
[1741580196583,16.70475406,127.97,127.92,18.28395406]
[1741580196784,16.70475406,127.96,127.93,7.8167]
[1741580198280,16.70475406,127.96,127.92,9.3964]
[1741580199496,16.70475406,127.97,127.92,26.10115406]
[1741580199800,90.2132,127.99,127.92,9.3964]
[1741580199801,16.70475406,127.95,127.92,9.3964]
[1741580199995,16.70475406,127.96,127.92,9.3964]
[1741580200502,16.70475406,127.95,127.92,9.3964]
[1741580200997,16.70475406,127.95,127.92,1.5792]
[1741580201180,16.70475406,127.95,127.92,0.063]
[1741580201998,16.70475406,127.95,127.92,7.8802]
[1741580202577,16.70475406,127.95,127.92,0.063]
[1741580203101,16.70475406,127.95,127.92,7.8802]
[1741580203281,16.73475406,127.96,127.92,7.8802]
[1741580203481,16.70475406,127.95,127.92,7.8802]
[1741580204304,16.73475406,127.96,127.92,7.8802]
[1741580208206,16.70475406,127.95,127.92,7.8802]
[1741580209426,16.70475406,127.95,127.92,0.063]
[1741580209427,18.64964886,127.95,127.92,0.063]
[1741580209581,63.17110292,127.93,127.92,0.063]
[1741580211594,36.70475406,127.93,127.92,0.063]
[1741580211791,55.35440292,127.93,127.92,0.063]
[1741580212609,63.17110292,127.93,127.92,0.063]
[1741580214191,59.87585698,127.93,127.92,0.063]
[1741580215006,43.17110292,127.93,127.92,0.063]
[1741580219111,16.70475406,127.93,127.92,0.063]
[1741580220097,16.70475406,127.95,127.92,0.063]
[1741580220491,0.03,127.96,127.92,0.063]
[1741580220492,16.70475406,127.94,127.92,0.063]
[1741580220897,16.70475406,127.93,127.92,0.063]
[1741580221718,16.70475406,127.94,127.92,0.063]
[1741580221913,16.70475406,127.93,127.92,0.063]
[1741580224526,16.70475406,127.95,127.92,0.063]
[1741580225189,18.67964886,127.96,127.92,0.063]
[1741580225190,16.70475406,127.94,127.92,0.063]